Cogmind - Beta 15 @@@ ROGUE MODE // 2025.10.01 @ 21:46:18 Player: Occam Result: Destroyed by D-53 Grenadier with Mini Grenade Launcher Performance ------------- Evolutions (0) 0 Regions Visited (2) 400 Robots Destroyed (37) 185 Value Destroyed (471) 471 Prototype IDs (0) 0 Alien Tech Used (0) 0 Bonus (0) 0 TOTAL SCORE: 1056 Bonus ------- None Cogmind --------- Core Integrity 0/250 Matter 300/300 Energy 100/100 System Corruption 0% Temperature Cool (0) Movement Rolling (180) Ox6 Location -10/Mines Parts ------- > --- POWER (1) -------- (None) > --- PROPULSION (2) --- Armored Wheel > --- UTILITY (2) ------ Huge Storage Unit Seismic Detector > --- WEAPON (2) ------- (None) > --- INVENTORY (25) --- Ion Engine Light Ion Engine Light Treads Light Treads Light Treads Light Treads Armored Wheel Improved Heat Sink Large Storage Unit High-capacity Matter Pod (200) Structural Scanner Structural Scanner Signal Interpreter Improved Terrain Scanner Seismic Detector ECM Suite Power Shielding Medium Laser Medium Laser Assault Rifle Assault Rifle Grenade Launcher Datajack Mining Laser Peak State ------------ > --- POWER ------------ Ion Engine > --- PROPULSION ------- Light Treads Compact Wheel > --- UTILITY ---------- Huge Storage Unit Seismic Detector > --- WEAPON ----------- Beamcaster Assault Rifle > --- INVENTORY -------- Ion Engine Light Ion Engine Light Treads Light Treads Light Treads Light Treads Armored Wheel Armored Wheel Improved Heat Sink Large Storage Unit Large Matter Pod Structural Scanner Structural Scanner Signal Interpreter Improved Terrain Scanner Seismic Detector ECM Suite Power Shielding Medium Laser Medium Laser Assault Rifle Assault Rifle Grenade Launcher Datajack Mining Laser [Rating: 14] Favorites ----------- Power Ion Engine Engine Ion Engine Propulsion Light Treads Treads Light Treads Leg Aluminum Leg Wheel Compact Wheel Utility Huge Storage Unit Device Seismic Detector Storage Huge Storage Unit Weapon Assault Rifle Energy Gun Medium Laser Ballistic Gun Assault Rifle Special Weapon Mining Laser Build | -11 -10 -10 ------- Run | Yrd Mat Min Slots Evolved . | . . . Power . | . . . Propulsion . | . . . Utility . | . . . Weapon . | . . . Parts Attached 14 | 1 10 3 Power 1 | . 1 . Engine 1 | . 1 . Core . | . . . Reactor . | . . . Propulsion 6 | . 4 2 Treads 4 | . 3 1 Leg . | . . . Wheel 2 | . 1 1 Hover . | . . . Flight . | . . . Utility 4 | 1 3 . Device 2 | 1 1 . Storage 2 | . 2 . Processor . | . . . Hackware . | . . . Protection . | . . . Artifact . | . . . Weapon 3 | . 2 1 Energy Gun 2 | . 1 1 Energy Cannon . | . . . Ballistic Gun . | . . . Ballistic Cannon . | . . . Launcher . | . . . Special Weapon 1 | . 1 . Impact Weapon . | . . . Slashing Weapon . | . . . Piercing Weapon . | . . . Special Melee Weapon . | . . . Unidentified Prototypes . | . . . Parts Lost 5 | . . 5 Power 1 | . . 1 Propulsion 2 | . . 2 Utility . | . . . Weapon 2 | . . 2 Highest Loss Streak 5 | . . 5 To Critical Strikes . | . . . Average Backups 17 | 7 14 24 Power 1 | 1 1 2 Propulsion 4 | 4 4 5 Utility 6 | . 4 9 Weapon 4 | 1 4 6 Tool/Special . | . . . Unused Backups 31 | 7 5 19 Power 4 | 1 1 2 Propulsion 9 | 3 3 3 Utility 10 | 1 1 8 Weapon 7 | 2 . 5 Tool/Special 1 | . . 1 Average Slot Usage (%) 99 | . 99 98 Engine 13 | . 14 13 Treads 18 | . 21 14 Wheel 8 | . 6 13 Device 14 | . 14 14 Storage 14 | . 14 14 Energy Gun 13 | . 12 13 Ballistic Gun 13 | . 14 13 Peak Build Rating 14 | 8 10 14 Average Rating 9 | 6 8 11 On Entrance 8 | 6 8 10 Naked Turns . | . . . Heaviest Build 93 | 13 90 93 Greatest Support 40 | 20 40 16 Greatest Overweight (x) 6 | . 5 6 Average Overweight (x) 2 | . 1 5 Largest Inventory Capacity 25 | 8 25 25 Average Capacity 20 | 8 18 25 Most Carried 25 | 8 25 25 Average Carried 17 | 7 14 24 Final Capacity 25 | 8 25 25 Final Carried 25 | 8 25 24 Class Distribution -------------------- 100% | Mutant Dominant Class ---------------- Mutant | -10/Materials Mutant | -10/Mines Resources | -11 -10 -10 ----------- Run | Yrd Mat Min Matter Collected 959 | 229 430 300 Remotely . | . . . Salvage Created 935 | 146 612 177 Parts 75 | 13 48 14 Haulers Intercepted . | . . . Recyclers Shooed 2 | . 2 . Parts Field Recycled . | . . . Retrieved Matter . | . . . Parts Self-Destructed . | . . . Prevented . | . . . Kills | -11 -10 -10 ------- Run | Yrd Mat Min Combat Hostiles Destroyed 22 | . 13 9 Guns 22 | . 13 9 Classes Destroyed 8 | 2 6 . Worker 1 | . 1 . Builder 2 | . 2 . Tunneler 5 | 4 . 1 Recycler 4 | 1 3 . Operator 1 | . 1 . Watcher 2 | . 2 . Swarmer 17 | . 9 8 Grunt 5 | . 4 1 Best Kill Streak 4 | 3 4 3 Combat Bots Only 3 | . 3 3 Max Kills in Single Turn 2 | 1 2 1 Gunslinging 1 | . 1 . Exploded . | . . . Melee . | . . . Uniques/NPCs Destroyed . | . . . Combat | -11 -10 -10 -------- Run | Yrd Mat Min Hostile Shots Fired 102 | . 60 42 Missed 28 | . 16 12 Hits 74 | . 44 30 Projectile 74 | . 44 30 AOE 11 | . . 11 Critical Strikes 1 | . 1 . Damage Taken 1028 | . 397 631 Core 263 | . 48 215 Absorbed by Shields . | . . . Regen/Repaired (Parts) 308 | . 308 . Core Remaining (%) 100 | 100 . . Volleys Fired 85 | 13 52 20 Largest 2 | 2 2 2 Hottest 100 | 70 100 95 Shots Fired 168 | 26 102 40 Gun 166 | 26 100 40 Cannon . | . . . Launcher . | . . . Special 2 | . 2 . Kinetic 83 | 13 50 20 Thermal 85 | 13 52 20 Explosive . | . . . Electromagnetic . | . . . Robot Hit Streak 11 | 8 11 7 Robot Miss Streak 3 | 2 3 2 Penetration Max . | . . . Secondary Targets 4 | . 3 1 Max Gunslinging Chain 1 | . 1 1 Shots Hit Robots 108 | 17 67 24 Core Hits 47 | 6 31 10 Critical Kills 1 | . 1 . Critical Parts Destroyed 1 | . 1 . Critical Strikes 9 | 1 6 2 Burn 7 | 1 4 2 Destroy 2 | . 2 . Melee Attacks . | . . . Impact . | . . . Slashing . | . . . Piercing . | . . . Sneak Attacks . | . . . Combat Hostiles . | . . . Follow-up Attacks . | . . . Damage Inflicted 1487 | 214 880 393 Guns 1487 | 214 880 393 Cannons . | . . . Explosions . | . . . Melee . | . . . Ramming . | . . . Kinetic 685 | 101 445 139 Thermal 802 | 113 435 254 Explosive . | . . . Electromagnetic . | . . . Impact . | . . . Slashing . | . . . Piercing . | . . . Highest Corruption . | . . . Average Corruption . | . . . Corruption Purged . | . . . Corruption Blocked . | . . . Overload Shots . | . . . Overflow Damage . | . . . Projectiles . | . . . Explosions . | . . . Melee . | . . . Knockbacks . | . . . Impact . | . . . Kinetic . | . . . Secondary . | . . . Self-Inflicted Damage . | . . . Shots . | . . . Rammed . | . . . Targets Rammed . | . . . Kicked . | . . . Crushed . | . . . Highest Temperature 129 | 81 129 99 Average Temperature 32 | 35 31 34 Received Heat Transfer 81 | . 69 12 Siege Activations . | . . . Martial Activations . | . . . Shielding Activations . | . . . Robots Disrupted . | . . . Combat Hostiles . | . . . Robots Corrupted . | . . . Combat Hostiles . | . . . Parts Fried . | . . . Impact Corruptions . | . . . Robots Melted . | . . . Combat Hostiles . | . . . Parts Melted 5 | 2 2 1 Heat Transferred 2664 | 407 1554 703 Parts Sabotaged . | . . . Parts Stolen . | . . . Parts Stripped . | . . . Power Chain Reactions . | . . . Alert | -11 -10 -10 ------- Run | Yrd Mat Min Maximum Alert Level . | . . . Low Security (%) 100 | 100 100 100 Level 1 . | . . . Level 2 . | . . . Level 3 . | . . . Level 4 . | . . . Level 5 . | . . . High Security . | . . . Max Security . | . . . Peak Influence 75 | 10 75 75 Initial 1 | . . 1 Average 19 | 1 21 17 Influence Increases 637 | 25 382 230 Destroy 0b10 Robot/C 440 | . 260 180 Destroy 0b10 Robot/NC 75 | 25 45 5 Destroy Leader 74 | . 44 30 Successful Hack 31 | . 31 . Destroy Structure 2 | . 2 . Lose Combat Pursuer 15 | . . 15 Influence Decreases 637 | 25 377 235 Entered New Map 4 | . . 4 Time Decay 633 | 25 377 231 Squads Dispatched . | . . . Investigation . | . . . Extermination . | . . . Reinforcement . | . . . Assault . | . . . Garrison . | . . . Intercept . | . . . Searches Triggered . | . . . Construction Impeded . | . . . Haulers Reinforced . | . . . Active Scanning Responses . | . . . Cargo Convoy Interrupts . | . . . Stealth | -11 -10 -10 --------- Run | Yrd Mat Min Distress Signals . | . . . Communications Jammed . | . . . Distress Signals . | . . . Times Spotted 39 | . 20 19 Peak Tracking Total 7 | . 3 7 Tactical Retreats 1 | . . 1 Traps | -11 -10 -10 ------- Run | Yrd Mat Min Traps Triggered 1 | . 1 . Indirectly . | . . . Trap Hack Attempts . | . . . Triggered . | . . . Disarmed . | . . . Reprogrammed . | . . . Reused . | . . . Traps Extracted . | . . . Installed . | . . . Triggered . | . . . Machines | -11 -10 -10 ---------- Run | Yrd Mat Min Machines Disabled . | . . . Max in Single Turn . | . . . Machines Repaired . | . . . Machines Dismantled . | . . . Machines Sabotaged . | . . . Overloaded Fab Kills . | . . . Hacking | -11 -10 -10 --------- Run | Yrd Mat Min Machines Accessed 8 | . 8 . Terminals 7 | . 7 . Fabricators . | . . . Repair Stations 1 | . 1 . Recycling Units . | . . . Scanalyzers . | . . . Garrison Access . | . . . Total Hacks 29 | . 29 . Successful 21 | . 21 . Failed 8 | . 8 . Catastrophic 1 | . 1 . Database Lockouts . | . . . Manual 22 | . 22 . Terminals 23 | . 23 . Fabricators . | . . . Repair Stations 6 | . 6 . Recycling Units . | . . . Scanalyzers . | . . . Garrison Access . | . . . Terminal Hacks 6 | . 6 . Robot Analysis 3 | . 3 . Terminal Index 1 | . 1 . Locate Traps 1 | . 1 . Hauler Manifests 1 | . 1 . Fabricator Hacks . | . . . Repair Station Hacks 6 | . 6 . Scan Component 3 | . 3 . Repair 3 | . 3 . Recycling Unit Hacks . | . . . Scanalyzer . | . . . Garrison Access Hacks . | . . . Unauthorized Hacks 9 | . 9 . Terminals 9 | . 9 . Botnet 2 | . 2 . Operators 1 | . 1 . Skim 6 | . 6 . Fabricators . | . . . Repair Stations . | . . . Recycling Units . | . . . Scanalyzers . | . . . Garrison Access . | . . . Data Cores Recovered . | . . . Used . | . . . Hacking Detections 8 | . 8 . Full Trace Events 2 | . 2 . Feedback Events . | . . . Feedback Blocked . | . . . Robot Schematics Acquired . | . . . Robots Built . | . . . Authchips . | . . . Time . | . . . Total Robot Build Rating . | . . . Part Schematics Acquired . | . . . Parts Built . | . . . Authchips . | . . . Time . | . . . Total Part Build Rating . | . . . Parts Repaired 3 | . 3 . Time 78 | . 78 . Parts Recycled . | . . . Recycled Matter . | . . . Retrieved Matter . | . . . Retrieved Components . | . . . Parts Scanalyzed . | . . . Part Schematics Acquired . | . . . Parts Damaged . | . . . Bothacking | -11 -10 -10 ------------ Run | Yrd Mat Min Used RIF Installer . | . . . Robots Hacked . | . . . Non-combat . | . . . Combat . | . . . Robot Hacks Applied . | . . . Relay Couplers Released . | . . . Fabnet Peak Effective % . | . . . Robots Rewired . | . . . Allies Hacked . | . . . Hacks Repelled . | . . . Allies | -11 -10 -10 -------- Run | Yrd Mat Min Total Allies 3 | . . 3 Largest Group 3 | . . 3 Highest-Rated Group 40 | . . 40 Highest-Rated Ally 16 | . . 16 Total Orders . | . . . Ally Attacks 4 | . . 4 Total Damage 25 | . . 25 Kills . | . . . Allies Corrupted . | . . . Allies Melted . | . . . Intel | -11 -10 -10 ------- Run | Yrd Mat Min Active Infowar (turns) 2413 | 7 1594 812 Structural 982 | . 982 . Seismic 1431 | 7 612 812 Robot Analysis Total 3 | . 3 . Derelict Logs Recovered 1 | . . 1 Drone Launches . | . . . Drone Recoveries . | . . . Exploration | -11 -10 -10 ------------- Run | Yrd Mat Min Turns Passed 2502 | 95 1595 812 Spaces Moved 1079 | 27 628 424 Core . | . . . Treads 424 | . 424 . Legs 27 | 27 . . Wheels 628 | . 204 424 Hover . | . . . Flight . | . . . Fastest Speed 120 | 120 160 175 Average Speed 167 | 120 164 175 Slowest Speed 180 | 120 175 180 Overloaded Moves . | . . . Propulsion Burnouts . | . . . Robots Hopped . | . . . Potential Cave-ins . | . . . Cave-ins Triggered . | . . . Exploration Rate (%) 60 | 3 99 78 Regions Visited 2 Branch Regions 1 Pre-discovered Areas 2 | . 1 1 Known Exits Taken . | . . . Unknown Exits Taken 2 | 1 1 . Scrap Searched 1 | . . 1 Spaces Dug 2 | . 2 . Terrain Destroyed 2 | . 2 . Melee . | . . . Projectile 2 | . 2 . AOE . | . . . Terrain Rammed . | . . . Walls Destroyed . | . . . Machines Disabled . | . . . Actions | -11 -10 -10 --------- Run | Yrd Mat Min Total 1602 | 63 1083 456 Wait 382 | 19 362 1 Move 1077 | 26 627 424 Hop . | . . . Pick Up 28 | 3 23 2 Fast Attach 4 | 1 2 1 Attach 5 | . 4 1 Detach 3 | . 2 1 Swap 8 | . 5 3 Drop 10 | 1 6 3 Fire 85 | 13 52 20 Melee . | . . . Ram . | . . . Kick . | . . . Crush . | . . . Escape Stasis . | . . . Rewire . | . . . Trap . | . . . Miscellaneous . | . . . Route ------- -11/Scrapyard -10/Materials (discovered 6 exits: [*Mat x3] / [*Min x2] / Sub) -10/Mines (discovered 1 exit: [*Mat]) History --------- Turn | Location | Event 4 | -11/Scrapyard | Discovered new exit (range 2) 96 | -11/Scrapyard | Entered Materials 307 | -10/Materials | Build established: Mutant 308 | -10/Materials | Discovered new exit (range 16) 401 | -10/Materials | Discovered new exit (range 10) 632 | -10/Materials | Discovered new exit (range 16) 751 | -10/Materials | Discovered new exit (range 8) 929 | -10/Materials | Discovered new exit (range 5) 999 | -10/Materials | Identified exit to Subcaves 1088 | -10/Materials | Loaded intel: 9 trap records 1141 | -10/Materials | Learned Storage emergency access door positions 1175 | -10/Materials | Learned location of 2 exits from Materials 1210 | -10/Materials | Learned location of 2 exits from Subcaves 1579 | -10/Materials | Repaired Lrg. Storage Unit 1606 | -10/Materials | Repaired Seismic Detector 1633 | -10/Materials | Repaired Med. Laser 1691 | -10/Materials | Entered Mines 1755 | -10/Mines | Met a Derelict bent on vengeance 1855 | -10/Mines | Learned location of Storage (-7) 2308 | -10/Mines | Discovered new exit (range 11) 2331 | -10/Mines | Assisted by bots powering up and referring to "LRC-V3" 2449 | -10/Mines | Assembled infested the area 2488 | -10/Mines | Learned Materials interactive machine intel 2492 | -10/Mines | Core integrity fell below 50% 2496 | -10/Mines | Core integrity fell below 20% 2503 | -10/Mines | Destroyed by D-53 Grenadier with Mini Grenade Launcher Last Messages --------------- 02480_ D-53 Grenadier unfolds itself. 02480_ Trooper 1a destroyed. 02480_ Trooper 1b destroyed. 02480_ Lgt. Treads destroyed. 02484_ Beamcaster destroyed. 02484_ as-40824 destroyed. 02484_ as-35446 destroyed. 02484_ Mercenary 1a destroyed. 02484_ as-29132 destroyed. 02488_ The unstable cave ceiling collapses. 02488_ Acquired derelict log, extracted data. Data stored: Materials interactive machine intel. 02489_ as-29593 destroyed. 02489_ as-36654 destroyed. 02491_ as-04219 destroyed. 02491_ Com. Wheel destroyed. 02491_ Ion Engine destroyed. 02492_ The unstable cave ceiling collapses. 02493_ as-70054 destroyed. 02496_ The unstable cave ceiling collapses. Map ----- +----------------------------------------------------+ | # # # #????# ##### #?????????????# | | ## =######???# ##### #?????????????# | | ?# # ##??# #???## ##????????????# | | ??# #%[# #??####[*#???## ############## | | ??# * %# # ##?????#%%##### | | ??# =# # #??????#= | | ??# ## # #??????######## % ######### | | ??# = ## #????????????##* ##??????? | | ??#! ####?????????????# ##?????? | | ??# #??????????????# ### ##????? | | ??# ### #?????????????# ##?## ##???? | | ??# #### ?????????## ##??## ##??? | | ??# #??? ## ""????????# ##??## #??? | | ??# #???####?? "?????#???## ###### % #??? | | ??# #????????? "????? ???# !] ##??? | | ??# #????????? ?????# ???# ##### ##???? | | ??# #?????????? ?????# ??? #???# # #????# | | ??# #?????????? ?????# ?? ???# ## #???## | | ??# #??????#### ###??# ?? ???# ## ##### | | ??# ########" ? ??? ??? ???# ## | | ??# ##%### #?### ###### ???# ###### | | ??# # ## ### ##?????# ###????## | | ??#### # # #?????# #???????##### | | ???# #?????# #???????????? | | ???# # d ####??# #???????????? | | ???# = = d @ u #??# #???????????? | | ??? = # # #?? ???????????? | | ??? # #???? ???????????? | | ??# # ##???? """???????????? | | ?# ## # ???# """ ??????????? | | ?# ##?###### ?# """ ??????????? | | ?????????##### ## ??? ??????????? | | #### ??????????????# ## ### ??? ??????????? | | ????##???????????????# ##?###?# ??????????????? | | ?????????????????????# ##??????? ??????????????? | | ?????????????????????# ###???????? ??????????????? | | ?????????????????????# ??????????????????????????? | | ????????????????????? ??????????????????????????? | | ?????????????????????##??????????????????????????? | | ?????????????????????????????????????????????????? | | ?????????????????????????????????????????????????? | | ?????????????????????????????????????????????????? | | ?????????????????????????????????????????????????? | | ?????????????????????????????????????????????????? | | ?????????????????????????????????????????????????? | | | | | | | | | | | +----------------------------------------------------+ Best States ------------- Heat Dissipation 25 Energy Generation 10 Energy Capacity 250 Matter Stores 300 Matter Capacity 300 Sight Range 16 Terrain Scan Density 10 Evasion (%) 50 Recoil Reduction 2 Item Schematics ----------------- None Robot Schematics ------------------ None Fabricated ------------ Nothing Repaired ---------- Lrg. Storage Unit | 31% | -10/Materials Seismic Detector | 25% | -10/Materials Med. Laser | 25% | -10/Materials Alien Tech Used ----------------- None Achievements -------------- None Challenges ------------ None Game ------ Seed SwordThunderInsulator Manual? 0 Play Time 00:15:00 Cumulative 675.0 hours Start 2025.10.01 @ 21:28:06 End 2025.10.01 @ 21:46:18 Sessions 1 Manual Loads 0 Difficulty Rogue Special Mode None Game No. 308 Rogue 164 Adventurer 144 Explorer 0 Win Type - Total 11 Types 4/1/5/1/0/0/0/0/0/0 Lore% 87 Gallery% 81 Achievement% 73 Wizard Run 0 Options --------- Layout 0 ASCII 0 Keyboard 0 Movement Mouse Keybinds 0 Fullscreen 2 Font 20/SmallcapsGlow Map View 66x50 Zoom Use 0% Tactical HUD 1 Map Filters NONE Filters NONE Steam 1 RUN: 6512651d-5095-4bb6-9c0c-8872dba5bad3